[Event "Titled Tuesday Blitz April 19 Early 2022"]
[White "Kosteniuk, Alexandra"]
[Black "Bacrot, Etienne"]
[WhiteFideId "4128125"]
[BlackFideId "605506"]
[WhiteElo "2469"]
[BlackElo "2673"]
[Result "1/2-1/2"]
[Round "03"]
[TimeControl "180+1"]
[Date "2022.04.19"]
[WhiteClock "0:00:04"]
[BlackClock "0:00:11"]

1. e4 {[%clk 0:03:00]}  c5 {[%clk 0:02:59]} 2. c3 {[%clk 0:03:00]}  d5 {[%clk 0:02:58]} 3. exd5 {[%clk 0:03:00]}  Qxd5 {[%clk 0:02:58]} 4. d4 {[%clk 0:03:01]}  e6 {[%clk 0:02:58]} 5. Nf3 {[%clk 0:03:01]}  Nf6 {[%clk 0:02:59]} 6. Be2 {[%clk 0:03:00]}  Be7 {[%clk 0:02:59]} 7. O-O {[%clk 0:02:59]}  O-O {[%clk 0:02:58]} 8. c4 {[%clk 0:02:59]}  Qd8 {[%clk 0:02:57]} 9. Nc3 {[%clk 0:02:57]}  cxd4 {[%clk 0:02:55]} 10. Qxd4 {[%clk 0:02:52]}  Nc6 {[%clk 0:02:49]} 11. Qf4 {[%clk 0:02:40]}  Qa5 {[%clk 0:02:30]} 12. Nb5 {[%clk 0:02:33]}  a6 {[%clk 0:02:26]} 13. Bd2 {[%clk 0:02:33]}  Qd8 {[%clk 0:02:18]} 14. Nc3 {[%clk 0:02:26]}  e5 {[%clk 0:02:18]} 15. Qe3 {[%clk 0:02:02]}  Nd4 {[%clk 0:02:00]} 16. Bd3 {[%clk 0:01:42]}  Ng4 {[%clk 0:01:40]} 17. Qe4 {[%clk 0:01:34]}  Bf5 {[%clk 0:01:31]} 18. Qxf5 {[%clk 0:01:35]}  Nxf5 {[%clk 0:01:31]} 19. Bxf5 {[%clk 0:01:35]}  Nf6 {[%clk 0:01:29]} 20. Rfd1 {[%clk 0:01:35]}  Qc7 {[%clk 0:01:22]} 21. Rac1 {[%clk 0:01:35]}  Rad8 {[%clk 0:01:19]} 22. Nd5 {[%clk 0:01:32]}  Nxd5 {[%clk 0:01:09]} 23. cxd5 {[%clk 0:01:33]}  Qb6 {[%clk 0:01:09]} 24. Bc3 {[%clk 0:01:32]}  Bc5 {[%clk 0:01:05]} 25. Nxe5 {[%clk 0:01:28]}  Bxf2+ {[%clk 0:01:04]} 26. Kh1 {[%clk 0:01:29]}  Rfe8 {[%clk 0:00:59]} 27. Rc2 {[%clk 0:01:24]}  Bh4 {[%clk 0:00:53]} 28. Rcd2 {[%clk 0:01:16]}  Qe3 {[%clk 0:00:46]} 29. Nf3 {[%clk 0:01:13]}  Be7 {[%clk 0:00:30]} 30. Ba5 {[%clk 0:00:52]}  b6 {[%clk 0:00:28]} 31. Rd3 {[%clk 0:00:49]}  Qxd3 {[%clk 0:00:24]} 32. Rxd3 {[%clk 0:00:47]}  bxa5 {[%clk 0:00:25]} 33. g3 {[%clk 0:00:44]}  Bf6 {[%clk 0:00:23]} 34. Rd2 {[%clk 0:00:35]}  Rd6 {[%clk 0:00:22]} 35. Kg2 {[%clk 0:00:34]}  g6 {[%clk 0:00:23]} 36. Bb1 {[%clk 0:00:32]}  a4 {[%clk 0:00:23]} 37. Bc2 {[%clk 0:00:32]}  Rb8 {[%clk 0:00:22]} 38. Bxa4 {[%clk 0:00:31]}  Rxb2 {[%clk 0:00:22]} 39. Rxb2 {[%clk 0:00:32]}  Bxb2 {[%clk 0:00:23]} 40. Bc6 {[%clk 0:00:33]}  f5 {[%clk 0:00:22]} 41. Nd2 {[%clk 0:00:33]}  Rd8 {[%clk 0:00:21]} 42. Nc4 {[%clk 0:00:33]}  Bd4 {[%clk 0:00:20]} 43. d6 {[%clk 0:00:32]}  Kf7 {[%clk 0:00:20]} 44. d7 {[%clk 0:00:32]}  Ke7 {[%clk 0:00:20]} 45. Kf3 {[%clk 0:00:32]}  Bc3 {[%clk 0:00:19]} 46. a4 {[%clk 0:00:28]}  h5 {[%clk 0:00:19]} 47. Ke2 {[%clk 0:00:25]}  a5 {[%clk 0:00:20]} 48. Kd3 {[%clk 0:00:25]}  Bb4 {[%clk 0:00:20]} 49. Kd4 {[%clk 0:00:23]}  Rf8 {[%clk 0:00:19]} 50. Ne5 {[%clk 0:00:19]}  Kd6 {[%clk 0:00:20]} 51. Nxg6 {[%clk 0:00:17]}  Rg8 {[%clk 0:00:17]} 52. Bd5 {[%clk 0:00:17]}  Rd8 {[%clk 0:00:15]} 53. Bf3 {[%clk 0:00:14]}  Rxd7 {[%clk 0:00:15]} 54. Bxh5 {[%clk 0:00:15]}  Rh7 {[%clk 0:00:15]} 55. Nf4 {[%clk 0:00:15]}  Bd2 {[%clk 0:00:14]} 56. Bg6 {[%clk 0:00:15]}  Rxh2 {[%clk 0:00:13]} 57. Bxf5 {[%clk 0:00:15]}  Bxf4 {[%clk 0:00:13]} 58. gxf4 {[%clk 0:00:15]}  Ra2 {[%clk 0:00:14]} 59. Bd3 {[%clk 0:00:12]}  Rxa4+ {[%clk 0:00:14]} 60. Bc4 {[%clk 0:00:13]}  Ra1 {[%clk 0:00:13]} 61. f5 {[%clk 0:00:13]}  Rc1 {[%clk 0:00:12]} 62. Bb3 {[%clk 0:00:11]}  Rf1 {[%clk 0:00:11]} 63. Bc2 {[%clk 0:00:10]}  Rf4+ {[%clk 0:00:11]} 64. Kc3 {[%clk 0:00:07]}  Kc5 {[%clk 0:00:11]} 65. Kb3 {[%clk 0:00:07]}  a4+ {[%clk 0:00:09]} 66. Ka3 {[%clk 0:00:06]}  Kb5 {[%clk 0:00:10]} 67. Bd3+ {[%clk 0:00:07]}  Ka5 {[%clk 0:00:10]} 68. Bc2 {[%clk 0:00:07]}  Rf3+ {[%clk 0:00:11]} 69. Kb2 {[%clk 0:00:06]}  Kb4 {[%clk 0:00:11]} 70. Be4 {[%clk 0:00:06]}  Rf4 {[%clk 0:00:11]} 71. Bd5 {[%clk 0:00:04]}  Rf2+ {[%clk 0:00:10]} 72. Ka1 {[%clk 0:00:03]}  Rxf5 {[%clk 0:00:10]} 73. Be6 {[%clk 0:00:03]}  Rf2 {[%clk 0:00:10]} 74. Kb1 {[%clk 0:00:03]}  Ka3 {[%clk 0:00:10]} 75. Bc4 {[%clk 0:00:01]}  Rb2+ {[%clk 0:00:10]} 76. Ka1 {[%clk 0:00:02]}  Rc2 {[%clk 0:00:10]} 77. Bd3 {[%clk 0:00:02]}  Rc3 {[%clk 0:00:10]} 78. Bb1 {[%clk 0:00:02]}  Kb4 {[%clk 0:00:10]} 79. Kb2 {[%clk 0:00:02]}  Rb3+ {[%clk 0:00:11]} 80. Ka1 {[%clk 0:00:03]}  Ra3+ {[%clk 0:00:11]} 81. Kb2 {[%clk 0:00:03]}  Rg3 {[%clk 0:00:11]} 82. Ba2 {[%clk 0:00:02]}  Re3 {[%clk 0:00:11]} 83. Ka1 {[%clk 0:00:03]}  Re1+ {[%clk 0:00:11]} 84. Bb1 {[%clk 0:00:03]}  Re2 {[%clk 0:00:10]} 85. Ba2 {[%clk 0:00:03]}  Kc3 {[%clk 0:00:10]} 86. Bb1 {[%clk 0:00:03]}  Kb3 {[%clk 0:00:10]} 87. Bg6 {[%clk 0:00:03]}  Ra2+ {[%clk 0:00:09]} 88. Kb1 {[%clk 0:00:03]}  Rg2 {[%clk 0:00:09]} 89. Bf7+ {[%clk 0:00:02]}  Ka3 {[%clk 0:00:09]} 90. Bd5 {[%clk 0:00:02]}  Rg1+ {[%clk 0:00:09]} 91. Kc2 {[%clk 0:00:02]}  Rf1 {[%clk 0:00:08]} 92. Be6 {[%clk 0:00:02]}  Kb4 {[%clk 0:00:07]} 93. Kb2 {[%clk 0:00:02]}  Rf2+ {[%clk 0:00:07]} 94. Kb1 {[%clk 0:00:02]}  Ka3 {[%clk 0:00:07]} 95. Bd5 {[%clk 0:00:02]}  Rf5 {[%clk 0:00:07]} 96. Be6 {[%clk 0:00:02]}  Rb5+ {[%clk 0:00:07]} 97. Ka1 {[%clk 0:00:02]}  Re5 {[%clk 0:00:06]} 98. Ba2 {[%clk 0:00:02]}  Re3 {[%clk 0:00:05]} 99. Bb1 {[%clk 0:00:02]}  Kb3 {[%clk 0:00:06]} 100. Ba2+ {[%clk 0:00:03]}  Kc2 {[%clk 0:00:05]} 101. Bb1+ {[%clk 0:00:04]}  Kc3 {[%clk 0:00:06]} 102. Ba2 {[%clk 0:00:04]}  Re1+ {[%clk 0:00:05]} 103. Bb1 {[%clk 0:00:04]}  Kb4 {[%clk 0:00:04]} 104. Kb2 {[%clk 0:00:04]}  Re3 {[%clk 0:00:04]} 105. Ba2 {[%clk 0:00:04]}  Re2+ {[%clk 0:00:04]} 106. Ka1 {[%clk 0:00:04]}  Rh2 {[%clk 0:00:04]} 107. Bb1 {[%clk 0:00:04]}  Kb3 {[%clk 0:00:04]} 108. Bg6 {[%clk 0:00:04]}  Rh1+ {[%clk 0:00:04]} 109. Bb1 {[%clk 0:00:04]}  Rh2 {[%clk 0:00:05]} 110. Bg6 {[%clk 0:00:04]}  Rf2 {[%clk 0:00:03]} 111. Bb1 {[%clk 0:00:04]}  Ka3 {[%clk 0:00:04]} 112. Be4 {[%clk 0:00:03]}  Ra2+ {[%clk 0:00:04]} 113. Kb1 {[%clk 0:00:03]}  Re2 {[%clk 0:00:04]} 114. Bd5 {[%clk 0:00:03]}  Re5 {[%clk 0:00:04]} 115. Bf7 {[%clk 0:00:03]}  Rg5 {[%clk 0:00:04]} 116. Be6 {[%clk 0:00:02]}  Kb4 {[%clk 0:00:04]} 117. Ba2 {[%clk 0:00:01]}  a3 {[%clk 0:00:04]} 118. Ka1 {[%clk 0:00:01]}  Rg1+ {[%clk 0:00:04]} 119. Bb1 {[%clk 0:00:02]}  a2 {[%clk 0:00:05]} 120. Kxa2 {[%clk 0:00:02]}  Kc3 {[%clk 0:00:05]} 121. Ka1 {[%clk 0:00:02]}  Rg5 {[%clk 0:00:04]} 122. Ba2 {[%clk 0:00:02]}  Ra5 {[%clk 0:00:05]} 123. Kb1 {[%clk 0:00:01]}  Ra6 {[%clk 0:00:05]} 124. Ka1 {[%clk 0:00:01]}  Kb4 {[%clk 0:00:05]} 125. Kb2 {[%clk 0:00:02]}  Rf6 {[%clk 0:00:05]} 126. Bb1 {[%clk 0:00:02]}  Rf2+ {[%clk 0:00:06]} 127. Ka1 {[%clk 0:00:02]}  Kb3 {[%clk 0:00:06]} 128. Bg6 {[%clk 0:00:02]}  Ra2+ {[%clk 0:00:06]} 129. Kb1 {[%clk 0:00:02]}  Ra7 {[%clk 0:00:07]} 130. Bc2+ {[%clk 0:00:02]}  Kc3 {[%clk 0:00:07]} 131. Bg6 {[%clk 0:00:02]}  Rb7+ {[%clk 0:00:07]} 132. Ka2 {[%clk 0:00:02]}  Rb5 {[%clk 0:00:07]} 133. Ka1 {[%clk 0:00:02]}  Ra5+ {[%clk 0:00:07]} 134. Kb1 {[%clk 0:00:02]}  Kb3 {[%clk 0:00:07]} 135. Kc1 {[%clk 0:00:02]}  Rg5 {[%clk 0:00:07]} 136. Bf7+ {[%clk 0:00:02]}  Ka3 {[%clk 0:00:06]} 137. Kd2 {[%clk 0:00:02]}  Rc5 {[%clk 0:00:05]} 138. Ke3 {[%clk 0:00:02]}  Kb4 {[%clk 0:00:05]} 139. Kd4 {[%clk 0:00:03]}  Rc7 {[%clk 0:00:06]} 140. Bd5 {[%clk 0:00:03]}  Rd7 {[%clk 0:00:06]} 141. Ke5 {[%clk 0:00:04]}  Kc5 {[%clk 0:00:06]} 142. Be6 {[%clk 0:00:04]}  Rd2 {[%clk 0:00:06]} 143. Kf6 {[%clk 0:00:05]}  Re2 {[%clk 0:00:06]} 144. Bg8 {[%clk 0:00:05]}  Kd6 {[%clk 0:00:07]} 145. Bf7 {[%clk 0:00:05]}  Rf2+ {[%clk 0:00:07]} 146. Kg7 {[%clk 0:00:06]}  Ke7 {[%clk 0:00:08]} 147. Bg8 {[%clk 0:00:06]}  Rg2+ {[%clk 0:00:08]} 148. Kh8 {[%clk 0:00:07]}  Kf6 {[%clk 0:00:09]} 149. Bh7 {[%clk 0:00:07]}  Kf7 {[%clk 0:00:08]} 150. Be4 {[%clk 0:00:06]}  Rg8+ {[%clk 0:00:08]} 151. Kh7 {[%clk 0:00:06]}  Rg4 {[%clk 0:00:09]} 152. Bd5+ {[%clk 0:00:07]}  Kf6 {[%clk 0:00:09]} 153. Kh8 {[%clk 0:00:06]}  Rh4+ {[%clk 0:00:09]} 154. Kg8 {[%clk 0:00:06]}  Kg6 {[%clk 0:00:09]} 155. Kf8 {[%clk 0:00:06]}  Kf6 {[%clk 0:00:09]} 156. Kg8 {[%clk 0:00:06]}  Rg4+ {[%clk 0:00:09]} 157. Kh8 {[%clk 0:00:06]}  Kg6 {[%clk 0:00:10]} 158. Bb3 {[%clk 0:00:05]}  Rh4+ {[%clk 0:00:10]} 159. Kg8 {[%clk 0:00:05]}  Rh2 {[%clk 0:00:10]} 160. Bf7+ {[%clk 0:00:05]}  Kf6 {[%clk 0:00:10]} 161. Bc4 {[%clk 0:00:05]}  Rh3 {[%clk 0:00:10]} 162. Ba2 {[%clk 0:00:05]}  Rg3+ {[%clk 0:00:11]} 163. Kh8 {[%clk 0:00:05]}  Kg6 {[%clk 0:00:10]} 164. Bb1+ {[%clk 0:00:05]}  Kf7 {[%clk 0:00:11]} 165. Ba2+ {[%clk 0:00:05]}  Kf6 {[%clk 0:00:11]} 166. Bb1 {[%clk 0:00:05]}  Rg2 {[%clk 0:00:11]} 167. Bh7 {[%clk 0:00:04]}  Kf7 {[%clk 0:00:11]} 168. Be4 {[%clk 0:00:04]}  Rg8+ {[%clk 0:00:11]} 169. Kh7 {[%clk 0:00:04]}  Rd8 {[%clk 0:00:11]} 170. Bg6+ {[%clk 0:00:04]} 1/2-1/2


[Site "https://www.chess.com"]

[Event "Titled Tuesday Blitz April 19 Early 2022"]
[White "Kostiukov, Alexandr"]
[Black "Johnson, Ben"]
[WhiteFideId "14108100"]
[BlackFideId "2010917"]
[WhiteElo "2202"]
[BlackElo "2125"]
[Result "1-0"]
[Round "03"]
[TimeControl "180+1"]
[Date "2022.04.19"]
[WhiteClock "0:01:20"]
[BlackClock "0:00:03"]

1. g3 {[%clk 0:02:45]}  d5 {[%clk 0:02:59]} 2. Bg2 {[%clk 0:02:44]}  Nf6 {[%clk 0:02:58]} 3. d3 {[%clk 0:02:44]}  e5 {[%clk 0:02:56]} 4. e4 {[%clk 0:02:44]}  d4 {[%clk 0:02:54]} 5. f4 {[%clk 0:02:44]}  Nc6 {[%clk 0:02:53]} 6. Nf3 {[%clk 0:02:43]}  Bg4 {[%clk 0:02:52]} 7. O-O {[%clk 0:02:42]}  Be7 {[%clk 0:02:43]} 8. h3 {[%clk 0:02:41]}  Bxf3 {[%clk 0:02:41]} 9. Qxf3 {[%clk 0:02:42]}  O-O {[%clk 0:02:40]} 10. a4 {[%clk 0:02:40]}  a5 {[%clk 0:02:36]} 11. Na3 {[%clk 0:02:39]}  exf4 {[%clk 0:02:25]} 12. gxf4 {[%clk 0:02:37]}  Nb4 {[%clk 0:02:25]} 13. Rf2 {[%clk 0:02:34]}  c6 {[%clk 0:02:16]} 14. Nc4 {[%clk 0:02:32]}  Nd7 {[%clk 0:02:03]} 15. e5 {[%clk 0:02:27]}  Nc5 {[%clk 0:01:43]} 16. f5 {[%clk 0:02:24]}  b5 {[%clk 0:01:42]} 17. axb5 {[%clk 0:02:22]}  cxb5 {[%clk 0:01:42]} 18. Qxa8 {[%clk 0:02:22]}  Qxa8 {[%clk 0:01:33]} 19. Bxa8 {[%clk 0:02:21]}  bxc4 {[%clk 0:01:31]} 20. Be4 {[%clk 0:02:06]}  cxd3 {[%clk 0:01:29]} 21. cxd3 {[%clk 0:02:06]}  Ncxd3 {[%clk 0:01:26]} 22. Bxd3 {[%clk 0:01:58]}  Nxd3 {[%clk 0:01:27]} 23. Re2 {[%clk 0:01:57]}  Rb8 {[%clk 0:01:01]} 24. Rxa5 {[%clk 0:01:53]}  Nxc1 {[%clk 0:00:58]} 25. Rc2 {[%clk 0:01:50]}  d3 {[%clk 0:00:55]} 26. Rxc1 {[%clk 0:01:47]}  Bb4 {[%clk 0:00:37]} 27. Rd5 {[%clk 0:01:42]}  d2 {[%clk 0:00:35]} 28. Rc4 {[%clk 0:01:38]}  h6 {[%clk 0:00:28]} 29. Kf1 {[%clk 0:01:36]}  Ba5 {[%clk 0:00:14]} 30. Ke2 {[%clk 0:01:27]}  Bb4 {[%clk 0:00:07]} 31. Rdd4 {[%clk 0:01:21]}  Ba5 {[%clk 0:00:06]} 32. b4 {[%clk 0:01:20]}  Bb6 {[%clk 0:00:03]} 33. Rd6 {[%clk 0:01:20]} 1-0


[Site "https://www.chess.com"]

[Event "Titled Tuesday Blitz April 19 Early 2022"]
[White "Kovalenko, Igor"]
[Black "Sailer, Mike"]
[WhiteFideId "14117908"]
[BlackFideId "2012901"]
[WhiteElo "2560"]
[BlackElo "2109"]
[Result "1-0"]
[Round "03"]
[TimeControl "180+1"]
[Date "2022.04.19"]
[WhiteClock "0:00:43"]
[BlackClock "0:00:02"]

1. Nf3 {[%clk 0:03:00]}  d5 {[%clk 0:02:56]} 2. g3 {[%clk 0:02:45]}  Nf6 {[%clk 0:02:55]} 3. Bg2 {[%clk 0:02:45]}  Bf5 {[%clk 0:02:55]} 4. O-O {[%clk 0:02:45]}  e6 {[%clk 0:02:55]} 5. d3 {[%clk 0:02:37]}  Be7 {[%clk 0:02:53]} 6. c4 {[%clk 0:02:36]}  c6 {[%clk 0:02:52]} 7. Qb3 {[%clk 0:02:36]}  Qb6 {[%clk 0:02:52]} 8. Be3 {[%clk 0:02:36]}  Qxb3 {[%clk 0:02:52]} 9. axb3 {[%clk 0:02:37]}  a6 {[%clk 0:02:52]} 10. Nc3 {[%clk 0:02:37]}  Nbd7 {[%clk 0:02:49]} 11. Nh4 {[%clk 0:02:25]}  Bg4 {[%clk 0:02:46]} 12. h3 {[%clk 0:02:25]}  Bh5 {[%clk 0:02:47]} 13. g4 {[%clk 0:02:25]}  Ng8 {[%clk 0:02:29]} 14. Nf3 {[%clk 0:02:25]}  Bg6 {[%clk 0:02:29]} 15. Bf4 {[%clk 0:02:01]}  h6 {[%clk 0:02:00]} 16. Rfd1 {[%clk 0:01:58]}  Bf6 {[%clk 0:01:57]} 17. d4 {[%clk 0:01:57]}  Be7 {[%clk 0:01:28]} 18. Rd2 {[%clk 0:01:47]}  Ngf6 {[%clk 0:01:29]} 19. Ne5 {[%clk 0:01:43]}  Nxe5 {[%clk 0:01:28]} 20. Bxe5 {[%clk 0:01:44]}  O-O {[%clk 0:01:24]} 21. e3 {[%clk 0:01:42]}  Ne4 {[%clk 0:01:20]} 22. Nxe4 {[%clk 0:01:25]}  Bxe4 {[%clk 0:01:20]} 23. f3 {[%clk 0:01:25]}  Bg6 {[%clk 0:01:14]} 24. c5 {[%clk 0:01:25]}  f6 {[%clk 0:00:58]} 25. Bg3 {[%clk 0:01:24]}  Rac8 {[%clk 0:00:56]} 26. Ra4 {[%clk 0:01:23]}  Bd8 {[%clk 0:00:56]} 27. e4 {[%clk 0:01:21]}  Bc7 {[%clk 0:00:54]} 28. Kf2 {[%clk 0:01:12]}  Bxg3+ {[%clk 0:00:53]} 29. Kxg3 {[%clk 0:01:12]}  Rc7 {[%clk 0:00:49]} 30. Re2 {[%clk 0:01:10]}  Kf7 {[%clk 0:00:44]} 31. Re3 {[%clk 0:01:08]}  Rd7 {[%clk 0:00:41]} 32. e5 {[%clk 0:01:08]}  Re7 {[%clk 0:00:25]} 33. Bf1 {[%clk 0:01:07]}  Rfe8 {[%clk 0:00:25]} 34. f4 {[%clk 0:01:07]}  Be4 {[%clk 0:00:24]} 35. Rb4 {[%clk 0:01:06]}  f5 {[%clk 0:00:20]} 36. Be2 {[%clk 0:01:04]}  g6 {[%clk 0:00:18]} 37. Rb6 {[%clk 0:01:04]}  Rd8 {[%clk 0:00:14]} 38. b4 {[%clk 0:00:57]}  Rg8 {[%clk 0:00:08]} 39. h4 {[%clk 0:00:55]}  Ke8 {[%clk 0:00:07]} 40. Ra3 {[%clk 0:00:46]}  Kf7 {[%clk 0:00:03]} 41. g5 {[%clk 0:00:44]}  h5 {[%clk 0:00:03]} 42. Kf2 {[%clk 0:00:40]}  Rd8 {[%clk 0:00:04]} 43. Ke3 {[%clk 0:00:40]}  Rdd7 {[%clk 0:00:04]} 44. Kd2 {[%clk 0:00:41]}  Kg7 {[%clk 0:00:05]} 45. Kc3 {[%clk 0:00:41]}  Kh7 {[%clk 0:00:05]} 46. Bxa6 {[%clk 0:00:41]}  bxa6 {[%clk 0:00:05]} 47. Rxc6 {[%clk 0:00:41]}  Rb7 {[%clk 0:00:05]} 48. Raxa6 {[%clk 0:00:42]}  Re8 {[%clk 0:00:04]} 49. Rxe6 {[%clk 0:00:41]}  Rxe6 {[%clk 0:00:04]} 50. Rxe6 {[%clk 0:00:41]}  Ra7 {[%clk 0:00:03]} 51. b5 {[%clk 0:00:41]}  Ra1 {[%clk 0:00:03]} 52. Re7+ {[%clk 0:00:41]}  Kg8 {[%clk 0:00:03]} 53. b6 {[%clk 0:00:42]}  Rc1+ {[%clk 0:00:03]} 54. Kb3 {[%clk 0:00:42]}  Bc2+ {[%clk 0:00:03]} 55. Kb4 {[%clk 0:00:42]}  Ra1 {[%clk 0:00:01]} 56. b7 {[%clk 0:00:42]}  Ra4+ {[%clk 0:00:01]} 57. Kc3 {[%clk 0:00:43]}  Rc4+ {[%clk 0:00:02]} 58. Kd2 {[%clk 0:00:43]}  Rxd4+ {[%clk 0:00:02]} 59. Kxc2 {[%clk 0:00:43]}  Rb4 {[%clk 0:00:02]} 60. c6 {[%clk 0:00:43]} 1-0


[Site "https://www.chess.com"]

[Event "Titled Tuesday Blitz April 19 Early 2022"]
[White "Kozak, Antoni"]
[Black "Kollars, Dmitrij"]
[WhiteFideId "21832030"]
[BlackFideId "12909572"]
[WhiteElo "2236"]
[BlackElo "2584"]
[Result "1-0"]
[Round "03"]
[TimeControl "180+1"]
[Date "2022.04.19"]
[WhiteClock "0:00:09"]
[BlackClock "0:00:12"]

1. Nf3 {[%clk 0:02:55]}  Nf6 {[%clk 0:02:59]} 2. c4 {[%clk 0:02:55]}  g6 {[%clk 0:02:59]} 3. Nc3 {[%clk 0:02:54]}  Bg7 {[%clk 0:03:00]} 4. e4 {[%clk 0:02:54]}  O-O {[%clk 0:03:01]} 5. d4 {[%clk 0:02:54]}  d6 {[%clk 0:03:01]} 6. h3 {[%clk 0:02:54]}  Na6 {[%clk 0:02:59]} 7. Bg5 {[%clk 0:02:53]}  h6 {[%clk 0:02:57]} 8. Be3 {[%clk 0:02:53]}  e5 {[%clk 0:02:57]} 9. d5 {[%clk 0:02:52]}  Nh5 {[%clk 0:02:56]} 10. Nd2 {[%clk 0:02:40]}  Nc5 {[%clk 0:02:50]} 11. g3 {[%clk 0:02:34]}  a5 {[%clk 0:02:49]} 12. Be2 {[%clk 0:02:34]}  Nf6 {[%clk 0:02:48]} 13. g4 {[%clk 0:02:30]}  Kh8 {[%clk 0:02:36]} 14. h4 {[%clk 0:02:22]}  Ng8 {[%clk 0:02:31]} 15. h5 {[%clk 0:02:06]}  Bf6 {[%clk 0:02:30]} 16. Nf3 {[%clk 0:01:44]}  Bxg4 {[%clk 0:02:23]} 17. hxg6 {[%clk 0:01:36]}  fxg6 {[%clk 0:02:24]} 18. Nh4 {[%clk 0:01:11]}  Bxe2 {[%clk 0:02:15]} 19. Nxg6+ {[%clk 0:01:10]}  Kg7 {[%clk 0:01:51]} 20. Qxe2 {[%clk 0:01:07]}  Kxg6 {[%clk 0:01:35]} 21. Qh5+ {[%clk 0:01:06]}  Kg7 {[%clk 0:01:36]} 22. Bxh6+ {[%clk 0:01:03]}  Nxh6 {[%clk 0:01:35]} 23. Rg1+ {[%clk 0:01:04]}  Bg5 {[%clk 0:01:29]} 24. Rxg5+ {[%clk 0:01:03]}  Qxg5 {[%clk 0:01:09]} 25. Qxg5+ {[%clk 0:01:03]}  Kh7 {[%clk 0:01:10]} 26. Ke2 {[%clk 0:00:43]}  Rg8 {[%clk 0:01:07]} 27. Qh5 {[%clk 0:00:29]}  Raf8 {[%clk 0:01:07]} 28. Rh1 {[%clk 0:00:29]}  Rf6 {[%clk 0:01:08]} 29. Qh4 {[%clk 0:00:22]}  Rgf8 {[%clk 0:00:59]} 30. f3 {[%clk 0:00:21]}  R8f7 {[%clk 0:00:55]} 31. Nd1 {[%clk 0:00:21]}  Kg7 {[%clk 0:00:27]} 32. Ne3 {[%clk 0:00:20]}  Kf8 {[%clk 0:00:28]} 33. Rg1 {[%clk 0:00:17]}  Ke8 {[%clk 0:00:20]} 34. Qh5 {[%clk 0:00:16]}  Kd7 {[%clk 0:00:20]} 35. Ng4 {[%clk 0:00:15]}  Nxg4 {[%clk 0:00:20]} 36. Qxg4+ {[%clk 0:00:15]}  Ke7 {[%clk 0:00:20]} 37. Rh1 {[%clk 0:00:13]}  Rxf3 {[%clk 0:00:19]} 38. Qxf3 {[%clk 0:00:13]}  Rxf3 {[%clk 0:00:20]} 39. Kxf3 {[%clk 0:00:14]}  Nd3 {[%clk 0:00:19]} 40. Rh7+ {[%clk 0:00:13]}  Kd8 {[%clk 0:00:19]} 41. b3 {[%clk 0:00:13]}  Nc5 {[%clk 0:00:20]} 42. Ke3 {[%clk 0:00:13]}  Kc8 {[%clk 0:00:20]} 43. Rg7 {[%clk 0:00:12]}  b6 {[%clk 0:00:20]} 44. Rg4 {[%clk 0:00:13]}  Kb7 {[%clk 0:00:19]} 45. Kd2 {[%clk 0:00:13]}  Nd7 {[%clk 0:00:19]} 46. Kc3 {[%clk 0:00:13]}  Nc5 {[%clk 0:00:19]} 47. a3 {[%clk 0:00:13]}  a4 {[%clk 0:00:18]} 48. b4 {[%clk 0:00:12]}  Nb3 {[%clk 0:00:19]} 49. Rg7 {[%clk 0:00:11]}  Kc8 {[%clk 0:00:18]} 50. Rg8+ {[%clk 0:00:11]}  Kb7 {[%clk 0:00:18]} 51. Rh8 {[%clk 0:00:12]}  Ka7 {[%clk 0:00:18]} 52. Rh7 {[%clk 0:00:12]}  Kb7 {[%clk 0:00:19]} 53. Rg7 {[%clk 0:00:12]}  Kb8 {[%clk 0:00:19]} 54. Rg1 {[%clk 0:00:12]}  Kb7 {[%clk 0:00:19]} 55. Rd1 {[%clk 0:00:12]}  Kb8 {[%clk 0:00:19]} 56. Rd3 {[%clk 0:00:12]}  Kb7 {[%clk 0:00:17]} 57. Kc2 {[%clk 0:00:12]}  Nd4+ {[%clk 0:00:17]} 58. Rxd4 {[%clk 0:00:12]}  exd4 {[%clk 0:00:18]} 59. Kd3 {[%clk 0:00:13]}  b5 {[%clk 0:00:15]} 60. Kxd4 {[%clk 0:00:07]}  bxc4 {[%clk 0:00:15]} 61. Kxc4 {[%clk 0:00:07]}  Kb6 {[%clk 0:00:16]} 62. Kd3 {[%clk 0:00:07]}  Ka6 {[%clk 0:00:16]} 63. Kd4 {[%clk 0:00:08]}  Kb5 {[%clk 0:00:15]} 64. Kd3 {[%clk 0:00:07]}  Ka6 {[%clk 0:00:15]} 65. Kc4 {[%clk 0:00:08]}  Kb6 {[%clk 0:00:15]} 66. Kd4 {[%clk 0:00:07]}  Kb5 {[%clk 0:00:16]} 67. e5 {[%clk 0:00:07]}  dxe5+ {[%clk 0:00:16]} 68. Kxe5 {[%clk 0:00:08]}  Kc4 {[%clk 0:00:13]} 69. Ke6 {[%clk 0:00:05]}  Kb3 {[%clk 0:00:10]} 70. d6 {[%clk 0:00:05]}  cxd6 {[%clk 0:00:09]} 71. b5 {[%clk 0:00:06]}  Kxa3 {[%clk 0:00:09]} 72. b6 {[%clk 0:00:06]}  Ka2 {[%clk 0:00:10]} 73. b7 {[%clk 0:00:07]}  a3 {[%clk 0:00:11]} 74. b8=Q {[%clk 0:00:08]}  Ka1 {[%clk 0:00:11]} 75. Qb3 {[%clk 0:00:08]}  a2 {[%clk 0:00:12]} 76. Qc2 {[%clk 0:00:09]}  d5 {[%clk 0:00:12]} 77. Qc1# {[%clk 0:00:09]} 1-0


[Site "https://www.chess.com"]

[Event "Titled Tuesday Blitz April 19 Early 2022"]
[White "Lewtak, Damian"]
[Black "Soucek, Petr"]
[WhiteFideId "1141724"]
[BlackFideId "23715170"]
[WhiteElo "2362"]
[BlackElo "1979"]
[Result "1-0"]
[Round "03"]
[TimeControl "180+1"]
[Date "2022.04.19"]
[WhiteClock "0:01:01"]
[BlackClock "0:00:23"]

1. e4 {[%clk 0:02:55]}  e5 {[%clk 0:02:56]} 2. Nf3 {[%clk 0:02:55]}  Nc6 {[%clk 0:02:56]} 3. Bb5 {[%clk 0:02:54]}  f5 {[%clk 0:02:56]} 4. d3 {[%clk 0:02:51]}  fxe4 {[%clk 0:02:53]} 5. dxe4 {[%clk 0:02:51]}  Nf6 {[%clk 0:02:53]} 6. O-O {[%clk 0:02:48]}  d6 {[%clk 0:02:52]} 7. Nc3 {[%clk 0:02:47]}  Bg4 {[%clk 0:02:48]} 8. h3 {[%clk 0:02:46]}  Bh5 {[%clk 0:02:49]} 9. Bg5 {[%clk 0:02:44]}  Be7 {[%clk 0:02:48]} 10. Bxf6 {[%clk 0:02:40]}  Bxf6 {[%clk 0:02:48]} 11. Nd5 {[%clk 0:02:41]}  O-O {[%clk 0:02:47]} 12. g4 {[%clk 0:02:40]}  Bf7 {[%clk 0:02:45]} 13. Kg2 {[%clk 0:02:37]}  a6 {[%clk 0:02:34]} 14. Bc4 {[%clk 0:02:33]}  b5 {[%clk 0:02:33]} 15. Bb3 {[%clk 0:02:32]}  Kh8 {[%clk 0:02:10]} 16. Qd2 {[%clk 0:02:27]}  Nb8 {[%clk 0:01:40]} 17. a4 {[%clk 0:02:22]}  bxa4 {[%clk 0:01:36]} 18. Rxa4 {[%clk 0:02:14]}  Nd7 {[%clk 0:01:35]} 19. Ra3 {[%clk 0:02:03]}  Nc5 {[%clk 0:01:31]} 20. Qe3 {[%clk 0:01:58]}  Nxb3 {[%clk 0:01:19]} 21. cxb3 {[%clk 0:01:54]}  Bxd5 {[%clk 0:01:13]} 22. exd5 {[%clk 0:01:55]}  Be7 {[%clk 0:01:07]} 23. Rfa1 {[%clk 0:01:52]}  Qc8 {[%clk 0:01:05]} 24. Nd2 {[%clk 0:01:50]}  Qb7 {[%clk 0:01:05]} 25. Qd3 {[%clk 0:01:44]}  Rf4 {[%clk 0:01:04]} 26. Ne4 {[%clk 0:01:28]}  Bh4 {[%clk 0:00:45]} 27. Rxa6 {[%clk 0:01:12]}  Rxa6 {[%clk 0:00:44]} 28. Qxa6 {[%clk 0:01:02]}  Qxd5 {[%clk 0:00:23]} 29. Qc8+ {[%clk 0:01:01]}  Qg8 {[%clk 0:00:23]} 30. Ra8 {[%clk 0:01:01]} 1-0


[Site "https://www.chess.com"]